[Event "Early-Titled-Tuesday-Blitz-February-27-2024"]
[Site "Chess.com"]
[Date "2024.02.27"]
[Round "11"]
[White "AryanTari"]
[Black "DenLaz"]
[Result "0-1"]
[WhiteElo "2943"]
[BlackElo "3037"]
[TimeControl "180+1"]
[EndTime "10:05:02 PST"]
[Termination "DenLaz won by resignation"]

1. e4 {[%clk 0:03:00.9]} 1... c5 {[%clk 0:03:00.4]} 2. Nf3 {[%clk 0:03:00.3]}
2... e6 {[%clk 0:03:00.6]} 3. c3 {[%clk 0:02:54]} 3... d5 {[%clk 0:03:00]} 4.
exd5 {[%clk 0:02:54.1]} 4... Qxd5 {[%clk 0:03:00.1]} 5. d4 {[%clk 0:02:54.3]}
5... Nf6 {[%clk 0:03:00.7]} 6. Na3 {[%clk 0:02:53.8]} 6... a6 {[%clk 0:03:01]}
7. Nc4 {[%clk 0:02:49.4]} 7... Nbd7 {[%clk 0:03:01.5]} 8. Be2 {[%clk 0:02:44.3]}
8... b5 {[%clk 0:02:50.4]} 9. Na5 {[%clk 0:02:44.4]} 9... Be7 {[%clk 0:02:22.1]}
10. O-O {[%clk 0:02:35.7]} 10... O-O {[%clk 0:02:22.2]} 11. Bf4 {[%clk
0:02:11.4]} 11... Bd8 {[%clk 0:02:08.2]} 12. c4 {[%clk 0:01:11.1]} 12... Qe4
{[%clk 0:01:40.4]} 13. Bd2 {[%clk 0:01:10.9]} 13... cxd4 {[%clk 0:01:40.7]} 14.
Bb4 {[%clk 0:01:01.5]} 14... Bxa5 {[%clk 0:01:35.3]} 15. Bxa5 {[%clk 0:01:02.4]}
15... e5 {[%clk 0:01:30.8]} 16. Re1 {[%clk 0:01:01.6]} 16... Bb7 {[%clk
0:01:13.8]} 17. cxb5 {[%clk 0:00:48.9]} 17... axb5 {[%clk 0:01:13.1]} 18. Bxb5
{[%clk 0:00:48.3]} 18... Qd5 {[%clk 0:01:12.7]} 19. Bxd7 {[%clk 0:00:46]} 19...
Nxd7 {[%clk 0:01:13.6]} 20. Bb4 {[%clk 0:00:40.2]} 20... Rfe8 {[%clk 0:01:14]}
21. a3 {[%clk 0:00:27.7]} 21... h6 {[%clk 0:01:08.7]} 22. Rc1 {[%clk 0:00:27]}
22... Ra6 {[%clk 0:01:05.6]} 23. Rc7 {[%clk 0:00:26]} 23... Rg6 {[%clk
0:01:02.7]} 24. Kh1 {[%clk 0:00:05]} 24... Nf6 {[%clk 0:01:02.6]} 25. Rg1 {[%clk
0:00:02.6]} 25... Ne4 {[%clk 0:00:58.5]} 26. Be1 {[%clk 0:00:03]} 26... Nd6
{[%clk 0:00:52.3]} 27. Qd2 {[%clk 0:00:02.5]} 27... Rxg2 {[%clk 0:00:45.3]} 0-1

[Event "Early-Titled-Tuesday-Blitz-February-27-2024"]
[Site "Chess.com"]
[Date "2024.02.27"]
[Round "11"]
[White "jefferyx"]
[Black "wonderfultime"]
[Result "1/2-1/2"]
[WhiteElo "3073"]
[BlackElo "3128"]
[TimeControl "180+1"]
[EndTime "10:05:10 PST"]
[Termination "Game drawn by agreement"]

1. e4 {[%clk 0:03:00.9]} 1... e5 {[%clk 0:03:00.4]} 2. Nf3 {[%clk 0:03:00.2]}
2... Nc6 {[%clk 0:03:00.7]} 3. Bc4 {[%clk 0:03:00.8]} 3... Bc5 {[%clk 0:03:00]}
4. c3 {[%clk 0:03:00.7]} 4... Nf6 {[%clk 0:03:00.4]} 5. d4 {[%clk 0:03:01]} 5...
exd4 {[%clk 0:03:00.3]} 6. e5 {[%clk 0:03:01.9]} 6... d5 {[%clk 0:03:00.8]} 7.
Be2 {[%clk 0:03:02]} 7... Ne4 {[%clk 0:02:59.4]} 8. cxd4 {[%clk 0:03:02.1]} 8...
Bb6 {[%clk 0:03:00.1]} 9. O-O {[%clk 0:03:01.7]} 9... O-O {[%clk 0:03:00]} 10.
Nc3 {[%clk 0:03:02.3]} 10... Nxc3 {[%clk 0:02:33.2]} 11. bxc3 {[%clk 0:03:02.1]}
11... f6 {[%clk 0:02:33.9]} 12. exf6 {[%clk 0:02:54.4]} 12... Qxf6 {[%clk
0:02:34.8]} 13. Qb3 {[%clk 0:02:34.4]} 13... Be6 {[%clk 0:02:23.7]} 14. a4
{[%clk 0:02:32]} 14... Rae8 {[%clk 0:02:11.5]} 15. Ng5 {[%clk 0:02:13.9]} 15...
Na5 {[%clk 0:01:58.7]} 16. Qa2 {[%clk 0:02:13.1]} 16... c6 {[%clk 0:01:44.7]}
17. Nxe6 {[%clk 0:02:11.9]} 17... Qxe6 {[%clk 0:01:41.3]} 18. Bd3 {[%clk
0:02:11.2]} 18... Nc4 {[%clk 0:01:39.6]} 19. g3 {[%clk 0:01:59.9]} 19... Ba5
{[%clk 0:01:32.1]} 20. Qc2 {[%clk 0:01:56.4]} 20... g6 {[%clk 0:01:29.5]} 21.
Bh6 {[%clk 0:01:45.6]} 21... Rf7 {[%clk 0:01:28.1]} 22. Bxc4 {[%clk 0:01:20.3]}
22... dxc4 {[%clk 0:01:28.4]} 23. Qd2 {[%clk 0:01:20.6]} 23... Qf5 {[%clk
0:00:55.3]} 24. Rae1 {[%clk 0:01:19.9]} 24... Rfe7 {[%clk 0:00:55.6]} 25. Rxe7
{[%clk 0:01:14.8]} 25... Rxe7 {[%clk 0:00:56.5]} 26. Re1 {[%clk 0:01:15.2]}
26... Rxe1+ {[%clk 0:00:53]} 27. Qxe1 {[%clk 0:01:16.1]} 27... Kf7 {[%clk
0:00:53.9]} 28. Qe2 {[%clk 0:01:08.9]} 28... Qd3 {[%clk 0:00:38.4]} 29. Qe5
{[%clk 0:00:58.8]} 29... Qxc3 {[%clk 0:00:27.6]} 30. Qg7+ {[%clk 0:00:54.2]}
30... Ke8 {[%clk 0:00:27.8]} 31. Qg8+ {[%clk 0:00:50.2]} 31... Kd7 {[%clk
0:00:27.4]} 32. Qxh7+ {[%clk 0:00:49.3]} 32... Kc8 {[%clk 0:00:25.1]} 33. Qg8+
{[%clk 0:00:47.5]} 33... Kc7 {[%clk 0:00:23.9]} 34. Be3 {[%clk 0:00:34.9]}
1/2-1/2

[Event "Early-Titled-Tuesday-Blitz-February-27-2024"]
[Site "Chess.com"]
[Date "2024.02.27"]
[Round "11"]
[White "PavelShkapenko"]
[Black "SuperBlitz2013"]
[Result "1-0"]
[WhiteElo "2721"]
[BlackElo "2271"]
[TimeControl "180+1"]
[EndTime "10:05:11 PST"]
[Termination "PavelShkapenko won by resignation"]

1. e4 {[%clk 0:03:00.9]} 1... e5 {[%clk 0:02:59.7]} 2. Nf3 {[%clk 0:03:00.6]}
2... Nc6 {[%clk 0:02:59.9]} 3. Bc4 {[%clk 0:02:59.4]} 3... Nf6 {[%clk
0:02:59.7]} 4. Ng5 {[%clk 0:02:59.6]} 4... d5 {[%clk 0:02:59.6]} 5. exd5 {[%clk
0:03:00.5]} 5... Na5 {[%clk 0:03:00.2]} 6. Bb5+ {[%clk 0:03:01.1]} 6... c6
{[%clk 0:03:00.9]} 7. dxc6 {[%clk 0:03:02]} 7... bxc6 {[%clk 0:03:01.6]} 8. Bd3
{[%clk 0:03:02.6]} 8... Nd5 {[%clk 0:03:01.7]} 9. Nf3 {[%clk 0:03:00.5]} 9...
Bd6 {[%clk 0:02:57]} 10. O-O {[%clk 0:03:00.5]} 10... O-O {[%clk 0:02:55.2]} 11.
Re1 {[%clk 0:03:01.1]} 11... Nf4 {[%clk 0:02:52.2]} 12. Bf1 {[%clk 0:02:58.4]}
12... Bg4 {[%clk 0:02:29.2]} 13. d4 {[%clk 0:02:58.4]} 13... exd4 {[%clk
0:01:42.7]} 14. Bxf4 {[%clk 0:02:44.6]} 14... Bxf4 {[%clk 0:01:43.6]} 15. Qxd4
{[%clk 0:02:44.7]} 15... Qxd4 {[%clk 0:01:43]} 16. Nxd4 {[%clk 0:02:44.6]} 16...
Bd7 {[%clk 0:01:43.9]} 17. Nc3 {[%clk 0:02:40.9]} 17... c5 {[%clk 0:01:38.1]}
18. Nb3 {[%clk 0:02:39.1]} 18... Nxb3 {[%clk 0:01:34.5]} 19. axb3 {[%clk
0:02:40]} 19... a5 {[%clk 0:01:18.8]} 20. Bb5 {[%clk 0:02:37.2]} 20... Bf5
{[%clk 0:01:18.7]} 21. Bc6 {[%clk 0:02:25.4]} 21... Ra7 {[%clk 0:01:13.6]} 22.
Be4 {[%clk 0:02:25.2]} 22... Be6 {[%clk 0:01:13]} 23. Bd3 {[%clk 0:02:21.3]}
23... Bg5 {[%clk 0:01:04.5]} 24. Ne4 {[%clk 0:02:20.6]} 24... Be7 {[%clk
0:01:03.7]} 25. Bc4 {[%clk 0:02:21]} 25... Bf5 {[%clk 0:01:00.2]} 26. Rad1
{[%clk 0:02:12]} 26... Bxe4 {[%clk 0:00:56.8]} 27. Rxe4 {[%clk 0:02:11.5]} 27...
Bf6 {[%clk 0:00:57.7]} 28. c3 {[%clk 0:02:10.8]} 28... a4 {[%clk 0:00:57.7]} 29.
bxa4 {[%clk 0:02:10.5]} 29... Rxa4 {[%clk 0:00:58.6]} 30. Bxf7+ {[%clk
0:02:10.5]} 30... Kxf7 {[%clk 0:00:58.6]} 31. Rxa4 {[%clk 0:02:10.4]} 31... Rb8
{[%clk 0:00:59.4]} 32. Ra2 {[%clk 0:02:08.7]} 32... Ke6 {[%clk 0:00:56.7]} 33.
g3 {[%clk 0:02:08.8]} 33... Rb3 {[%clk 0:00:53.4]} 34. Kg2 {[%clk 0:02:08.7]}
34... h5 {[%clk 0:00:52.4]} 35. Rd2 {[%clk 0:02:08.4]} 35... h4 {[%clk
0:00:45.9]} 36. Ra4 {[%clk 0:02:02.9]} 36... hxg3 {[%clk 0:00:43.8]} 37. hxg3
{[%clk 0:02:03]} 37... Rb5 {[%clk 0:00:42.6]} 38. Re4+ {[%clk 0:02:01.1]} 38...
Kf5 {[%clk 0:00:41.9]} 39. Rc4 {[%clk 0:02:01.2]} 39... Ke6 {[%clk 0:00:41.3]}
40. Kf3 {[%clk 0:01:59.1]} 40... Ra5 {[%clk 0:00:40]} 41. Ke4 {[%clk 0:01:55.1]}
41... Rb5 {[%clk 0:00:39.5]} 42. f4 {[%clk 0:01:53.4]} 42... g6 {[%clk
0:00:39.2]} 43. g4 {[%clk 0:01:53.6]} 43... Be7 {[%clk 0:00:39.2]} 44. Rh2
{[%clk 0:01:49.9]} 44... Bf6 {[%clk 0:00:35.5]} 45. Re2 {[%clk 0:01:48.7]} 45...
Be7 {[%clk 0:00:34.1]} 46. Kd3+ {[%clk 0:01:48.8]} 46... Kd6 {[%clk 0:00:30.8]}
47. Rce4 {[%clk 0:01:48.7]} 47... Bd8 {[%clk 0:00:29.4]} 48. Re6+ {[%clk
0:01:48.2]} 48... Kd7 {[%clk 0:00:29.5]} 49. Rxg6 {[%clk 0:01:48.1]} 49... Bc7
{[%clk 0:00:28.5]} 50. Kc4 {[%clk 0:01:47.6]} 50... Ra5 {[%clk 0:00:28.3]} 51.
Rg7+ {[%clk 0:01:46]} 51... Kd6 {[%clk 0:00:24.2]} 52. f5 {[%clk 0:01:43]} 52...
Ra4+ {[%clk 0:00:23.9]} 53. Kb3 {[%clk 0:01:33.1]} 53... Ra7 {[%clk 0:00:20.6]}
54. c4 {[%clk 0:01:24.1]} 54... Rb7+ {[%clk 0:00:19.3]} 55. Kc2 {[%clk
0:01:23.9]} 55... Kc6 {[%clk 0:00:18.4]} 56. Re6+ {[%clk 0:01:23.4]} 1-0

[Event "Early-Titled-Tuesday-Blitz-February-27-2024"]
[Site "Chess.com"]
[Date "2024.02.27"]
[Round "11"]
[White "Matols"]
[Black "whiteglovethief"]
[Result "0-1"]
[WhiteElo "2399"]
[BlackElo "2509"]
[TimeControl "180+1"]
[EndTime "10:05:17 PST"]
[Termination "whiteglovethief won on time"]

1. d4 {[%clk 0:02:57.9]} 1... d5 {[%clk 0:02:59]} 2. c4 {[%clk 0:02:57.7]} 2...
e6 {[%clk 0:02:59.2]} 3. Nf3 {[%clk 0:02:57.3]} 3... a6 {[%clk 0:02:59]} 4. cxd5
{[%clk 0:02:55.1]} 4... exd5 {[%clk 0:02:59.9]} 5. Nc3 {[%clk 0:02:54.6]} 5...
h6 {[%clk 0:02:59.7]} 6. Bf4 {[%clk 0:02:52.3]} 6... c6 {[%clk 0:02:59.6]} 7. e3
{[%clk 0:02:50.4]} 7... Bd6 {[%clk 0:02:59.7]} 8. Bxd6 {[%clk 0:02:49.3]} 8...
Qxd6 {[%clk 0:03:00.6]} 9. Bd3 {[%clk 0:02:49.3]} 9... Ne7 {[%clk 0:03:01]} 10.
Ne5 {[%clk 0:02:45.9]} 10... O-O {[%clk 0:03:00]} 11. Qc2 {[%clk 0:02:36.7]}
11... Nd7 {[%clk 0:02:53.4]} 12. f4 {[%clk 0:02:33.5]} 12... f6 {[%clk
0:02:50.5]} 13. Bh7+ {[%clk 0:02:20.3]} 13... Kh8 {[%clk 0:02:50]} 14. Ng6+
{[%clk 0:01:56]} 14... Nxg6 {[%clk 0:02:48.5]} 15. Bxg6 {[%clk 0:01:56.9]} 15...
Qe6 {[%clk 0:02:40.7]} 16. O-O {[%clk 0:01:23.7]} 16... f5 {[%clk 0:02:34.8]}
17. Bh5 {[%clk 0:01:19.6]} 17... Qxe3+ {[%clk 0:02:31.8]} 18. Kh1 {[%clk
0:01:18.9]} 18... Nf6 {[%clk 0:02:29.5]} 19. Bg6 {[%clk 0:01:16]} 19... Qxd4
{[%clk 0:02:24.9]} 20. Rad1 {[%clk 0:01:05.3]} 20... Qc5 {[%clk 0:02:24.7]} 21.
Qe2 {[%clk 0:00:48.7]} 21... Ne4 {[%clk 0:02:19.5]} 22. Nxe4 {[%clk 0:00:45]}
22... fxe4 {[%clk 0:02:20.4]} 23. f5 {[%clk 0:00:41.9]} 23... Rf6 {[%clk
0:02:16.1]} 24. Qh5 {[%clk 0:00:29.1]} 24... d4 {[%clk 0:02:06.4]} 25. Qg4
{[%clk 0:00:19.9]} 25... Qe5 {[%clk 0:02:05.1]} 26. Rfe1 {[%clk 0:00:18.7]}
26... Rxg6 {[%clk 0:01:44.1]} 27. Qxg6 {[%clk 0:00:18]} 27... Bxf5 {[%clk
0:01:44.8]} 28. Qf7 {[%clk 0:00:17.8]} 28... e3 {[%clk 0:01:35.5]} 29. Qxb7
{[%clk 0:00:17.5]} 29... Rb8 {[%clk 0:01:28.2]} 30. Qxc6 {[%clk 0:00:17.1]}
30... Rxb2 {[%clk 0:01:26.1]} 31. Qc4 {[%clk 0:00:15.1]} 31... Qe4 {[%clk
0:01:21.6]} 32. Rg1 {[%clk 0:00:13]} 32... d3 {[%clk 0:01:13.9]} 33. Qc3 {[%clk
0:00:09.4]} 33... Rxg2 {[%clk 0:01:07.4]} 34. Rxg2 {[%clk 0:00:08.3]} 34... e2
{[%clk 0:01:07.8]} 35. Rg1 {[%clk 0:00:06.8]} 35... Bg6 {[%clk 0:00:58.7]} 36.
Qc8+ {[%clk 0:00:05.8]} 36... Kh7 {[%clk 0:00:58]} 37. Qxa6 {[%clk 0:00:03.8]}
37... e1=Q {[%clk 0:00:54.7]} 0-1

[Event "Early-Titled-Tuesday-Blitz-February-27-2024"]
[Site "Chess.com"]
[Date "2024.02.27"]
[Round "11"]
[White "FMStan15"]
[Black "newauto"]
[Result "1/2-1/2"]
[WhiteElo "2080"]
[BlackElo "2201"]
[TimeControl "180+1"]
[EndTime "10:05:17 PST"]
[Termination "Game drawn by repetition"]

1. e4 {[%clk 0:03:00.9]} 1... c6 {[%clk 0:03:00.9]} 2. d4 {[%clk 0:03:00.5]}
2... d5 {[%clk 0:03:01.8]} 3. e5 {[%clk 0:03:00.8]} 3... Bf5 {[%clk 0:03:01.3]}
4. Bd3 {[%clk 0:03:00.9]} 4... Bxd3 {[%clk 0:03:00.9]} 5. Qxd3 {[%clk
0:03:01.1]} 5... e6 {[%clk 0:03:01]} 6. c3 {[%clk 0:03:02]} 6... Ne7 {[%clk
0:02:59.4]} 7. Ne2 {[%clk 0:03:02.5]} 7... c5 {[%clk 0:02:59.1]} 8. O-O {[%clk
0:03:02.4]} 8... Nec6 {[%clk 0:02:58.8]} 9. f4 {[%clk 0:02:58.9]} 9... g6 {[%clk
0:02:52.9]} 10. Be3 {[%clk 0:02:57.8]} 10... cxd4 {[%clk 0:02:52.1]} 11. cxd4
{[%clk 0:02:57.6]} 11... Nd7 {[%clk 0:02:53]} 12. Nbc3 {[%clk 0:02:57.1]} 12...
Bg7 {[%clk 0:02:45.3]} 13. a3 {[%clk 0:02:55.6]} 13... a6 {[%clk 0:02:44.3]} 14.
b4 {[%clk 0:02:55.7]} 14... b5 {[%clk 0:02:39.4]} 15. g4 {[%clk 0:02:51.8]}
15... Nb6 {[%clk 0:02:38.1]} 16. f5 {[%clk 0:02:47.2]} 16... gxf5 {[%clk
0:02:28.3]} 17. gxf5 {[%clk 0:02:45.4]} 17... Nc4 {[%clk 0:02:27.9]} 18. fxe6
{[%clk 0:02:25.2]} 18... fxe6 {[%clk 0:02:24.9]} 19. Nf4 {[%clk 0:02:23]} 19...
Qd7 {[%clk 0:01:54.1]} 20. Kh1 {[%clk 0:02:20.1]} 20... O-O {[%clk 0:01:48.7]}
21. Nh5 {[%clk 0:02:16.6]} 21... Rxf1+ {[%clk 0:01:42.8]} 22. Rxf1 {[%clk
0:02:15.4]} 22... Rf8 {[%clk 0:01:43.7]} 23. Rxf8+ {[%clk 0:02:09]} 23... Kxf8
{[%clk 0:01:40.8]} 24. Nf6 {[%clk 0:01:15.4]} 24... Bxf6 {[%clk 0:01:33.2]} 25.
exf6 {[%clk 0:01:15.2]} 25... Qf7 {[%clk 0:01:32.4]} 26. Bg5 {[%clk 0:01:14.6]}
26... Qh5 {[%clk 0:01:26.6]} 27. Qg3 {[%clk 0:01:04]} 27... Nxd4 {[%clk
0:01:19.7]} 28. Qb8+ {[%clk 0:00:51.6]} 28... Kf7 {[%clk 0:01:18.3]} 29. Qc7+
{[%clk 0:00:51.7]} 29... Kg6 {[%clk 0:01:17.7]} 30. Qg7+ {[%clk 0:00:32.5]}
30... Kf5 {[%clk 0:01:16.9]} 31. f7 {[%clk 0:00:29.1]} 31... Qf3+ {[%clk
0:01:13.3]} 32. Kg1 {[%clk 0:00:28.3]} 32... Qg4+ {[%clk 0:01:12.1]} 33. Kh1
{[%clk 0:00:25.6]} 33... Qf3+ {[%clk 0:01:05.4]} 34. Kg1 {[%clk 0:00:25.5]}
34... Qg4+ {[%clk 0:00:54.4]} 35. Kh1 {[%clk 0:00:21.4]} 35... Qf3+ {[%clk
0:00:25.5]} 1/2-1/2

[Event "Early-Titled-Tuesday-Blitz-February-27-2024"]
[Site "Chess.com"]
[Date "2024.02.27"]
[Round "11"]
[White "Canal_Showdrez"]
[Black "abeljusto"]
[Result "0-1"]
[WhiteElo "1989"]
[BlackElo "2101"]
[TimeControl "180+1"]
[EndTime "10:05:18 PST"]
[Termination "abeljusto won by resignation"]

1. d4 {[%clk 0:03:00.9]} 1... d5 {[%clk 0:02:59]} 2. Nf3 {[%clk 0:02:52.9]} 2...
Nf6 {[%clk 0:02:55.9]} 3. e3 {[%clk 0:02:38.3]} 3... g6 {[%clk 0:02:54.5]} 4.
Bd3 {[%clk 0:02:36.7]} 4... Bg7 {[%clk 0:02:55]} 5. Nbd2 {[%clk 0:02:30.9]} 5...
O-O {[%clk 0:02:54.9]} 6. O-O {[%clk 0:02:27.5]} 6... Nbd7 {[%clk 0:02:52.1]} 7.
c3 {[%clk 0:02:27.1]} 7... c5 {[%clk 0:02:52]} 8. Re1 {[%clk 0:02:19.2]} 8...
Qc7 {[%clk 0:02:43.8]} 9. e4 {[%clk 0:02:18.7]} 9... dxe4 {[%clk 0:02:37.3]} 10.
Nxe4 {[%clk 0:02:18]} 10... Nxe4 {[%clk 0:02:37]} 11. Bxe4 {[%clk 0:02:17.5]}
11... Nf6 {[%clk 0:02:34.2]} 12. Bc2 {[%clk 0:02:16]} 12... Bg4 {[%clk
0:02:33.2]} 13. Be3 {[%clk 0:02:11.6]} 13... cxd4 {[%clk 0:02:32.3]} 14. Bxd4
{[%clk 0:02:11.4]} 14... Rad8 {[%clk 0:02:30.4]} 15. Qe2 {[%clk 0:02:08]} 15...
Rfe8 {[%clk 0:02:22.5]} 16. Qe5 {[%clk 0:02:04.8]} 16... Qc8 {[%clk 0:02:06.7]}
17. Ng5 {[%clk 0:02:02.4]} 17... h6 {[%clk 0:01:56]} 18. Ne4 {[%clk 0:01:42.7]}
18... Nh5 {[%clk 0:01:53]} 19. Qa5 {[%clk 0:01:28.8]} 19... Bxd4 {[%clk
0:01:49.2]} 20. Bb3 {[%clk 0:01:13.1]} 20... Bb6 {[%clk 0:01:45.3]} 21. Qe5
{[%clk 0:00:51.3]} 21... Qf5 {[%clk 0:01:33.6]} 22. Qxf5 {[%clk 0:00:36.6]}
22... Bxf5 {[%clk 0:01:33.3]} 23. Ng3 {[%clk 0:00:36.3]} 23... Nxg3 {[%clk
0:01:32.8]} 24. hxg3 {[%clk 0:00:35.2]} 24... Rd2 {[%clk 0:01:33.3]} 25. Rf1
{[%clk 0:00:34.4]} 25... Bd3 {[%clk 0:01:31.5]} 26. Rfd1 {[%clk 0:00:32.7]}
26... Bxf2+ {[%clk 0:00:59.6]} 27. Kh2 {[%clk 0:00:31.8]} 27... Rxd1 {[%clk
0:00:52.4]} 28. Rxd1 {[%clk 0:00:30.9]} 28... Bf5 {[%clk 0:00:47.2]} 29. Rf1
{[%clk 0:00:26.5]} 29... Bb6 {[%clk 0:00:46.7]} 30. Rf4 {[%clk 0:00:26.6]} 30...
e5 {[%clk 0:00:45.4]} 31. Rc4 {[%clk 0:00:21.5]} 31... e4 {[%clk 0:00:44.6]} 32.
Rb4 {[%clk 0:00:18.9]} 32... e3 {[%clk 0:00:44.1]} 33. Bc4 {[%clk 0:00:18]}
33... e2 {[%clk 0:00:42.9]} 0-1

[Event "Early-Titled-Tuesday-Blitz-February-27-2024"]
[Site "Chess.com"]
[Date "2024.02.27"]
[Round "11"]
[White "NewYearGirl"]
[Black "BeardedNM"]
[Result "0-1"]
[WhiteElo "2352"]
[BlackElo "2245"]
[TimeControl "180+1"]
[EndTime "10:05:20 PST"]
[Termination "BeardedNM won by resignation"]

1. e4 {[%clk 0:03:00.9]} 1... e6 {[%clk 0:02:58.3]} 2. d4 {[%clk 0:03:00.5]}
2... d5 {[%clk 0:02:57.4]} 3. Nc3 {[%clk 0:03:01]} 3... Bb4 {[%clk 0:02:56.7]}
4. e5 {[%clk 0:03:00.9]} 4... c5 {[%clk 0:02:57.1]} 5. a3 {[%clk 0:03:00.8]}
5... Bxc3+ {[%clk 0:02:57.8]} 6. bxc3 {[%clk 0:03:01.7]} 6... Ne7 {[%clk
0:02:58.5]} 7. Qg4 {[%clk 0:03:01.7]} 7... Qc7 {[%clk 0:02:59.1]} 8. Qxg7 {[%clk
0:03:00.7]} 8... Rg8 {[%clk 0:02:59.8]} 9. Qxh7 {[%clk 0:03:01.2]} 9... cxd4
{[%clk 0:03:00.4]} 10. Ne2 {[%clk 0:03:01.7]} 10... Nbc6 {[%clk 0:03:01]} 11. f4
{[%clk 0:03:01.6]} 11... dxc3 {[%clk 0:03:00.5]} 12. Qd3 {[%clk 0:02:59.2]}
12... d4 {[%clk 0:03:00.9]} 13. Nxd4 {[%clk 0:02:59]} 13... Nxd4 {[%clk
0:03:01.8]} 14. Qxd4 {[%clk 0:02:58.5]} 14... Bd7 {[%clk 0:03:02.5]} 15. Rg1
{[%clk 0:02:54.9]} 15... Nf5 {[%clk 0:03:02.1]} 16. Qf2 {[%clk 0:02:54.2]} 16...
Qc6 {[%clk 0:03:01.7]} 17. g4 {[%clk 0:02:50.9]} 17... Qe4+ {[%clk 0:02:57.9]}
18. Qe2 {[%clk 0:02:42.1]} 18... Qd4 {[%clk 0:02:35.1]} 19. Rg2 {[%clk 0:02:35]}
19... Bc6 {[%clk 0:01:55.9]} 20. Rf2 {[%clk 0:02:23.7]} 20... Nh4 {[%clk
0:01:30.5]} 21. Be3 {[%clk 0:02:22]} 21... Qd5 {[%clk 0:01:27.8]} 22. Rd1 {[%clk
0:02:18.1]} 22... Nf3+ {[%clk 0:01:27.4]} 23. Rxf3 {[%clk 0:02:11.2]} 23... Qxf3
{[%clk 0:01:28.3]} 24. g5 {[%clk 0:02:04.6]} 24... Rh8 {[%clk 0:01:06.6]} 25.
Qxf3 {[%clk 0:01:52.2]} 25... Bxf3 {[%clk 0:01:06.4]} 26. Bb5+ {[%clk
0:01:52.7]} 26... Bc6 {[%clk 0:00:58.6]} 27. Bxc6+ {[%clk 0:01:51.6]} 27... bxc6
{[%clk 0:00:59]} 28. Bg1 {[%clk 0:01:51.9]} 28... Rd8 {[%clk 0:00:47.8]} 29. Rb1
{[%clk 0:01:51.8]} 29... Rh4 {[%clk 0:00:44.5]} 30. Rb4 {[%clk 0:01:49.9]} 30...
Rd2 {[%clk 0:00:35.3]} 31. Rb8+ {[%clk 0:01:43.5]} 31... Kd7 {[%clk 0:00:20.5]}
32. Rb7+ {[%clk 0:01:41.4]} 32... Kc8 {[%clk 0:00:20.9]} 33. Rxf7 {[%clk
0:01:41.1]} 33... Rxc2 {[%clk 0:00:21.3]} 34. g6 {[%clk 0:01:39.3]} 34... Rg4
{[%clk 0:00:18.5]} 35. Be3 {[%clk 0:01:22.2]} 35... Rxg6 {[%clk 0:00:17.2]} 36.
Rf6 {[%clk 0:01:18.2]} 36... Rgg2 {[%clk 0:00:14.5]} 37. Kf1 {[%clk 0:01:13.2]}
37... Rge2 {[%clk 0:00:14.1]} 38. Bxa7 {[%clk 0:01:13]} 38... Rxh2 {[%clk
0:00:13.1]} 39. Kg1 {[%clk 0:01:12.8]} 39... Rhd2 {[%clk 0:00:12.6]} 40. Kh1
{[%clk 0:01:07.3]} 40... Rc1+ {[%clk 0:00:11.9]} 41. Bg1 {[%clk 0:01:07.9]}
41... Rdd1 {[%clk 0:00:12.5]} 42. Rg6 {[%clk 0:01:08.2]} 42... c2 {[%clk
0:00:12.5]} 43. f5 {[%clk 0:01:08.1]} 43... Rxg1+ {[%clk 0:00:12.3]} 44. Rxg1
{[%clk 0:01:07.6]} 44... Rxg1+ {[%clk 0:00:12.9]} 45. Kxg1 {[%clk 0:01:08.1]}
45... c1=Q+ {[%clk 0:00:13.5]} 46. Kf2 {[%clk 0:01:08]} 46... Qf4+ {[%clk
0:00:13.7]} 47. Kg2 {[%clk 0:01:07.5]} 47... Qxf5 {[%clk 0:00:14.5]} 48. Kg3
{[%clk 0:01:07.6]} 48... Qxe5+ {[%clk 0:00:14.9]} 0-1

[Event "Early-Titled-Tuesday-Blitz-February-27-2024"]
[Site "Chess.com"]
[Date "2024.02.27"]
[Round "11"]
[White "SlavenPastar"]
[Black "ChessQueen"]
[Result "0-1"]
[WhiteElo "2637"]
[BlackElo "2773"]
[TimeControl "180+1"]
[EndTime "10:05:22 PST"]
[Termination "ChessQueen won by resignation"]

1. b3 {[%clk 0:03:00.9]} 1... f5 {[%clk 0:02:58.8]} 2. Bb2 {[%clk 0:03:00.2]}
2... Nf6 {[%clk 0:02:58]} 3. d3 {[%clk 0:03:00.6]} 3... d5 {[%clk 0:02:55]} 4.
Nd2 {[%clk 0:02:59.9]} 4... d4 {[%clk 0:02:51.3]} 5. Ngf3 {[%clk 0:02:56.3]}
5... Nc6 {[%clk 0:02:47.8]} 6. c3 {[%clk 0:02:53.5]} 6... e5 {[%clk 0:02:42.2]}
7. cxd4 {[%clk 0:02:53.5]} 7... exd4 {[%clk 0:02:42.6]} 8. g3 {[%clk 0:02:49.7]}
8... Be6 {[%clk 0:02:39.9]} 9. Bg2 {[%clk 0:02:47.5]} 9... Be7 {[%clk
0:02:27.5]} 10. O-O {[%clk 0:02:47.1]} 10... O-O {[%clk 0:02:27.3]} 11. a3
{[%clk 0:02:45.5]} 11... f4 {[%clk 0:02:22.2]} 12. b4 {[%clk 0:02:43.6]} 12...
a6 {[%clk 0:02:19.8]} 13. Nb3 {[%clk 0:02:41.8]} 13... fxg3 {[%clk 0:02:17.3]}
14. hxg3 {[%clk 0:02:40.8]} 14... Bd5 {[%clk 0:02:07.7]} 15. Nbxd4 {[%clk
0:02:32.1]} 15... Nxd4 {[%clk 0:02:07.5]} 16. Nxd4 {[%clk 0:02:22.5]} 16... c5
{[%clk 0:02:05.3]} 17. Nf5 {[%clk 0:02:13.6]} 17... Bxg2 {[%clk 0:01:54.3]} 18.
Kxg2 {[%clk 0:02:14.5]} 18... cxb4 {[%clk 0:01:37.5]} 19. Nxe7+ {[%clk
0:02:04.6]} 19... Qxe7 {[%clk 0:01:37.1]} 20. axb4 {[%clk 0:02:05.3]} 20... Ng4
{[%clk 0:01:26.7]} 21. Qb3+ {[%clk 0:01:43.2]} 21... Kh8 {[%clk 0:01:27]} 22.
Bd4 {[%clk 0:01:33.1]} 22... Qxe2 {[%clk 0:01:20.2]} 23. Rae1 {[%clk 0:01:01.6]}
23... Qf3+ {[%clk 0:01:16.5]} 24. Kg1 {[%clk 0:01:01.4]} 24... Rad8 {[%clk
0:01:10.1]} 25. Qc3 {[%clk 0:00:53.8]} 25... Rf7 {[%clk 0:01:04.7]} 26. Re4
{[%clk 0:00:48.1]} 26... h6 {[%clk 0:00:49.5]} 27. Qd2 {[%clk 0:00:21.2]} 27...
Kh7 {[%clk 0:00:47.4]} 28. Rfe1 {[%clk 0:00:18.1]} 28... Rxd4 {[%clk 0:00:44.4]}
29. Rxd4 {[%clk 0:00:15.6]} 29... Nxf2 {[%clk 0:00:45]} 30. Rh4 {[%clk
0:00:13.4]} 30... Nxd3 {[%clk 0:00:41.6]} 31. Rd1 {[%clk 0:00:11.3]} 31... Qxg3+
{[%clk 0:00:37]} 32. Qg2 {[%clk 0:00:10.4]} 32... Qxh4 {[%clk 0:00:35.6]} 33.
Rxd3 {[%clk 0:00:10.6]} 33... Qe1+ {[%clk 0:00:35.9]} 34. Kh2 {[%clk 0:00:10.7]}
34... Rf2 {[%clk 0:00:36.2]} 0-1